Cogmind - Beta 14 @@@ ROGUE MODE // 2024.08.07 @ 12:54:01 Player: APerTAS Result: Core destroyed Performance ------------- Evolutions (2) 1000 Regions Visited (5) 1000 Robots Destroyed (27) 135 Value Destroyed (581) 581 Prototype IDs (25) 500 Alien Tech Used (0) 0 Bonus (300) 300 TOTAL SCORE: 3516 Bonus ------- Aligned with FarCom 300 Cogmind --------- Core Integrity 0/550 Matter 113/300 Energy 100/100 System Corruption 27% Temperature Cool (0) Movement Core (50) Location -8/Materials Parts ------- > --- POWER (1) -------- (None) > --- PROPULSION (3) --- (None) > --- UTILITY (5) ------ (None) > --- WEAPON (2) ------- (None) > --- INVENTORY (5) ---- Light Nuclear Core Aluminum Leg Sensor Array EM Pulse Gun Plasma Cutter Peak State ------------ > --- POWER ------------ Ion Engine > --- PROPULSION ------- Potential Leg Potential Leg > --- UTILITY ---------- Large Storage Unit Signal Interpreter Hacking Suite Hacking Suite > --- WEAPON ----------- Light Cannon Improved Light Cannon > --- INVENTORY -------- Light Nuclear Core Aluminum Leg High-capacity Matter Pod Sensor Array EM Pulse Gun Light Cannon Mini Grenade Launcher Plasma Cutter [Rating: 33] Favorites ----------- Power Ion Engine Engine Ion Engine Propulsion Light Treads Treads Light Treads Leg Potential Leg Utility Hacking Suite Device Sensor Array Storage Large Storage Unit Processor Signal Interpreter Hackware Hacking Suite Weapon Light Cannon Ballistic Gun Assault Rifle Ballistic Cannon Light Cannon Launcher Mini Grenade Launcher Build | -11 -10 -10 -10 -9 -8 ------- Run | Yrd Mat Min Exi Min Mat Slots Evolved 4 | . . . . . 4 Power . | . . . . . . Propulsion 1 | . . . . . 1 Utility 3 | . . . . . 3 Weapon . | . . . . . . Parts Attached 23 | 6 5 4 3 1 4 Power 3 | 1 1 1 . . . Engine 3 | 1 1 1 . . . Core . | . . . . . . Reactor . | . . . . . . Propulsion 6 | 2 1 1 2 . . Treads 4 | 2 1 1 . . . Leg 2 | . . . 2 . . Wheel . | . . . . . . Hover . | . . . . . . Flight . | . . . . . . Utility 7 | 1 3 . 1 . 2 Device 1 | . 1 . . . . Storage 3 | 1 1 . 1 . . Processor 1 | . . . . . 1 Hackware 2 | . 1 . . . 1 Protection . | . . . . . . Artifact . | . . . . . . Weapon 7 | 2 . 2 . 1 2 Energy Gun . | . . . . . . Energy Cannon . | . . . . . . Ballistic Gun 2 | 2 . . . . . Ballistic Cannon 4 | . . 2 . 1 1 Launcher 1 | . . . . . 1 Special Weapon . | . . . . . . Impact Weapon . | . . . . . . Slashing Weapon . | . . . . . . Piercing Weapon . | . . . . . . Special Melee Weapon . | . . . . . . Unidentified Prototypes . | . . . . . . Parts Lost 7 | . . 4 . . 3 Power 2 | . . 1 . . 1 Propulsion 1 | . . 1 . . . Utility . | . . . . . . Weapon 4 | . . 2 . . 2 Highest Loss Streak 4 | . . 4 . . 3 To Critical Strikes . | . . . . . . Average Slot Usage (%) 96 | . 99 92 99 100 47 Engine 13 | . 14 12 14 14 5 Treads 19 | . 28 26 14 . . Leg 7 | . . . 13 28 10 Storage 13 | . 14 14 14 14 5 Hackware 12 | . 12 14 14 14 10 Ballistic Gun 15 | . 28 7 . . . Ballistic Cannon 11 | . . 17 28 28 8 Peak Build Rating 33 | 6 10 10 28 29 33 Average Rating 13 | 4 9 9 19 28 21 On Entrance 13 | . 6 10 10 28 29 Naked Turns 33 | . . . . . 33 Heaviest Build 32 | 13 28 31 31 32 32 Greatest Support 60 | 40 40 40 60 60 60 Greatest Overweight (x) . | . . . . . . Average Overweight (x) . | . . . . . . Largest Inventory Capacity 15 | 8 15 15 15 15 15 Average Capacity 13 | 7 12 15 15 15 11 Most Carried 11 | 4 11 11 9 10 9 Average Carried 8 | 2 9 8 7 7 6 Final Capacity 15 | 8 15 15 15 15 5 Final Carried 11 | 4 11 7 7 10 5 Class Distribution -------------------- 97% | Mutant Dominant Class ---------------- Mutant | -10/Materials Mutant | -10/Mines Mutant | -10/Exiles Mutant | -9/Mines Mutant | -8/Materials Resources | -11 -10 -10 -10 -9 -8 ----------- Run | Yrd Mat Min Exi Min Mat Matter Collected 636 | 197 257 . 90 92 . Remotely . | . . . . . . Salvage Created 639 | . 432 . . 60 147 Parts 56 | . 32 . . 12 12 Haulers Intercepted 1 | . . . . . 1 Recyclers Shooed . | . . . . . . Parts Field Recycled . | . . . . . . Retrieved Matter . | . . . . . . Parts Self-Destructed . | . . . . . . Prevented . | . . . . . . Kills | -11 -10 -10 -10 -9 -8 ------- Run | Yrd Mat Min Exi Min Mat Combat Hostiles Destroyed 20 | . 7 . . 7 6 Guns 7 | . 7 . . . . Cannons 11 | . . . . 7 4 AOE 2 | . . . . . 2 Classes Destroyed 7 | . 4 . . 1 2 Worker 1 | . 1 . . . . Hauler 1 | . . . . . 1 Operator 2 | . 2 . . . . Watcher 3 | . 3 . . . . Swarmer 10 | . . . . 7 3 Grunt 8 | . 7 . . . 1 Sentry 2 | . . . . . 2 Best Kill Streak 7 | . 6 . . 4 7 Combat Bots Only 6 | . 6 . . 4 6 Max Kills in Single Turn 2 | . 1 . . 1 2 Gunslinging . | . . . . . . Exploded 1 | . . . . . 1 Melee . | . . . . . . Uniques/NPCs Destroyed . | . . . . . . Combat | -11 -10 -10 -10 -9 -8 -------- Run | Yrd Mat Min Exi Min Mat Hostile Shots Fired 152 | . 58 10 . 37 47 Missed 39 | . 21 . . 9 9 Damage Taken 1988 | . 413 383 . 225 967 Core 769 | . 64 103 . 50 552 Absorbed by Shields . | . . . . . . Core Remaining (%) 56 | 100 . . . 13 . Volleys Fired 70 | . 39 3 . 13 15 Largest 2 | . 2 2 . 2 2 Hottest 74 | . 40 40 . 70 74 Shots Fired 132 | . 78 5 . 26 23 Gun 83 | . 78 5 . . . Cannon 41 | . . . . 26 15 Launcher 8 | . . . . . 8 Special . | . . . . . . Kinetic 124 | . 78 5 . 26 15 Thermal . | . . . . . . Explosive 8 | . . . . . 8 Electromagnetic . | . . . . . . Robot Hit Streak 9 | . 9 3 . 3 6 Robot Miss Streak 6 | . 2 1 . 6 2 Penetration Max . | . . . . . . Secondary Targets 3 | . 3 . . . . Max Gunslinging Chain 1 | . 1 . . . . Shots Hit Robots 80 | . 54 4 . 11 11 Core Hits 45 | . 23 4 . 7 11 Critical Kills . | . . . . . . Critical Parts Destroyed . | . . . . . . Critical Strikes 1 | . . . . 1 . Blast 1 | . . . . 1 . Melee Attacks . | . . . . . . Impact . | . . . . . . Slashing . | . . . . . . Piercing . | . . . . . . Sneak Attacks . | . . . . . . Combat Hostiles . | . . . . . . Follow-up Attacks . | . . . . . . Damage Inflicted 1437 | . 600 36 . 238 563 Guns 622 | . 592 30 . . . Cannons 373 | . . . . 238 135 Explosions 224 | . . . . . 224 Melee . | . . . . . . Ramming 218 | . 8 6 . . 204 Kinetic 995 | . 592 30 . 238 135 Thermal . | . . . . . . Explosive 224 | . . . . . 224 Electromagnetic . | . . . . . . Impact . | . . . . . . Slashing . | . . . . . . Piercing . | . . . . . . Highest Corruption 27 | . . . . . 27 Average Corruption 17 | . . . . . 17 Corruption Purged . | . . . . . . Corruption Blocked . | . . . . . . Overload Shots . | . . . . . . Overflow Damage 17 | . . . . . 17 Projectiles . | . . . . . . Explosions 17 | . . . . . 17 Melee . | . . . . . . Knockbacks 7 | . . . . 5 2 Impact . | . . . . . . Kinetic 6 | . . . . 4 2 Secondary 1 | . . . . 1 . Self-Inflicted Damage 262 | . . . . . 262 Shots 4 | . . . . . 4 Rammed 4 | . 1 3 . . . Targets Rammed 4 | . 1 3 . . . Kicked . | . . . . . . Crushed . | . . . . . . Highest Temperature 83 | . 21 . . 83 61 Average Temperature 26 | . 8 . . 40 31 Received Heat Transfer 360 | . 225 . . . 135 Siege Activations . | . . . . . . Robots Corrupted . | . . . . . . Combat Hostiles . | . . . . . . Parts Fried . | . . . . . . Impact Corruptions . | . . . . . . Robots Melted . | . . . . . . Combat Hostiles . | . . . . . . Parts Melted . | . . . . . . Heat Transferred . | . . . . . . Parts Sabotaged . | . . . . . . Parts Stolen . | . . . . . . Parts Stripped . | . . . . . . Power Chain Reactions . | . . . . . . Alert | -11 -10 -10 -10 -9 -8 ------- Run | Yrd Mat Min Exi Min Mat Peak Influence 218 | . 159 5 . 175 218 Initial 68 | . . 5 . . 68 Average 73 | . 66 1 . 140 147 Maximum Alert Level 1 | . . . . . 1 Low Security (%) 97 | 100 100 100 . 100 60 Level 1 2 | . . . . . 39 Level 2 . | . . . . . . Level 3 . | . . . . . . Level 4 . | . . . . . . Level 5 . | . . . . . . High Security . | . . . . . . Max Security . | . . . . . . Squads Dispatched 4 | . 3 . . . 1 Investigation 1 | . 1 . . . . Extermination . | . . . . . . Reinforcement 2 | . 2 . . . . Assault . | . . . . . . Garrison 1 | . . . . . 1 Intercept . | . . . . . . Searches Triggered . | . . . . . . Construction Impeded . | . . . . . . Haulers Reinforced . | . . . . . . Active Scanning Responses . | . . . . . . Cargo Convoy Interrupts . | . . . . . . Stealth | -11 -10 -10 -10 -9 -8 --------- Run | Yrd Mat Min Exi Min Mat Distress Signals 1 | . 1 . . . . Communications Jammed . | . . . . . . Distress Signals . | . . . . . . Times Spotted 28 | . 13 2 . 7 6 Peak Tracking Total 4 | . 4 2 . 4 4 Tactical Retreats . | . . . . . . Traps | -11 -10 -10 -10 -9 -8 ------- Run | Yrd Mat Min Exi Min Mat Traps Triggered 1 | . 1 . . . . Indirectly . | . . . . . . Trap Hack Attempts . | . . . . . . Triggered . | . . . . . . Disarmed . | . . . . . . Reprogrammed . | . . . . . . Reused . | . . . . . . Traps Extracted . | . . . . . . Installed . | . . . . . . Triggered . | . . . . . . Machines | -11 -10 -10 -10 -9 -8 ---------- Run | Yrd Mat Min Exi Min Mat Machines Disabled 1 | . . . . . 1 Max in Single Turn 1 | . . . . . 1 Machines Repaired . | . . . . . . Machines Dismantled . | . . . . . . Machines Sabotaged . | . . . . . . Overloaded Fab Kills . | . . . . . . Hacking | -11 -10 -10 -10 -9 -8 --------- Run | Yrd Mat Min Exi Min Mat Machines Accessed 8 | . 4 . 4 . . Terminals 3 | . 3 . . . . Fabricators . | . . . . . . Repair Stations . | . . . . . . Recycling Units 1 | . 1 . . . . Scanalyzers . | . . . . . . Garrison Access . | . . . . . . Total Hacks 39 | . 12 . 27 . . Successful 36 | . 9 . 27 . . Failed 3 | . 3 . . . . Catastrophic 1 | . 1 . . . . Database Lockouts . | . . . . . . Manual 9 | . 8 . 1 . . Terminals 10 | . 10 . . . . Fabricators . | . . . . . . Repair Stations . | . . . . . . Recycling Units 2 | . 2 . . . . Scanalyzers . | . . . . . . Garrison Access . | . . . . . . Terminal Hacks 32 | . 5 . 27 . . Record 26 | . . . 26 . . Prototype ID Bank 1 | . 1 . . . . Locate Traps 2 | . 2 . . . . Registered Components 1 | . 1 . . . . Zone Layout 1 | . 1 . . . . Derelict Proto ID Bank 1 | . . . 1 . . Fabricator Hacks . | . . . . . . Repair Station Hacks . | . . . . . . Recycling Unit Hacks . | . . . . . . Scanalyzer . | . . . . . . Garrison Access Hacks . | . . . . . . Unauthorized Hacks 4 | . 4 . . . . Terminals 3 | . 3 . . . . Track 1 | . 1 . . . . Botnet 2 | . 2 . . . . Fabricators . | . . . . . . Repair Stations . | . . . . . . Recycling Units 1 | . 1 . . . . Reject 1 | . 1 . . . . Scanalyzers . | . . . . . . Garrison Access . | . . . . . . Data Cores Recovered 1 | . 1 . . . . Used . | . . . . . . Hacking Detections 4 | . 4 . . . . Full Trace Events . | . . . . . . Feedback Events . | . . . . . . Feedback Blocked . | . . . . . . Robot Schematics Acquired . | . . . . . . Robots Built . | . . . . . . Authchips . | . . . . . . Time . | . . . . . . Total Robot Build Rating . | . . . . . . Part Schematics Acquired . | . . . . . . Parts Built . | . . . . . . Authchips . | . . . . . . Time . | . . . . . . Total Part Build Rating . | . . . . . . Parts Repaired . | . . . . . . Time . | . . . . . . Parts Recycled . | . . . . . . Recycled Matter . | . . . . . . Retrieved Matter . | . . . . . . Retrieved Components . | . . . . . . Parts Scanalyzed . | . . . . . . Part Schematics Acquired . | . . . . . . Parts Damaged . | . . . . . . Bothacking | -11 -10 -10 -10 -9 -8 ------------ Run | Yrd Mat Min Exi Min Mat Used RIF Installer . | . . . . . . Robots Hacked . | . . . . . . Non-combat . | . . . . . . Combat . | . . . . . . Robot Hacks Applied . | . . . . . . Relay Couplers Released . | . . . . . . Fabnet Peak Effective % . | . . . . . . Robots Rewired . | . . . . . . Allies Hacked . | . . . . . . Hacks Repelled . | . . . . . . Allies | -11 -10 -10 -10 -9 -8 -------- Run | Yrd Mat Min Exi Min Mat Total Allies . | . . . . . . Largest Group . | . . . . . . Highest-Rated Group . | . . . . . . Highest-Rated Ally . | . . . . . . Total Orders . | . . . . . . Ally Attacks . | . . . . . . Total Damage . | . . . . . . Kills . | . . . . . . Allies Corrupted . | . . . . . . Allies Melted . | . . . . . . Intel | -11 -10 -10 -10 -9 -8 ------- Run | Yrd Mat Min Exi Min Mat Robot Analysis Total . | . . . . . . Derelict Logs Recovered 1 | . . . . 1 . Drone Launches . | . . . . . . Drone Recoveries . | . . . . . . Exploration | -11 -10 -10 -10 -9 -8 ------------- Run | Yrd Mat Min Exi Min Mat Turns Passed 1960 | 81 1012 81 503 182 101 Spaces Moved 1245 | 46 552 41 427 151 28 Core 4 | 4 . . . . . Treads 791 | 42 552 41 156 . . Legs 450 | . . . 271 151 28 Wheels . | . . . . . . Hover . | . . . . . . Flight . | . . . . . . Fastest Speed 50 | 50 160 160 90 90 90 Average Speed 134 | 150 160 160 115 90 90 Slowest Speed 160 | 160 160 160 160 90 90 Overloaded Moves . | . . . . . . Propulsion Burnouts . | . . . . . . Robots Hopped . | . . . . . . Cave-ins Triggered . | . . . . . . Exploration Rate (%) 36 | 5 64 16 90 38 5 Regions Visited 5 Branch Regions 3 Pre-discovered Areas . | . . . . . . Known Exits Taken . | . . . . . . Unknown Exits Taken 5 | 1 1 1 1 1 . Scrap Searched 1 | . . . . 1 . Spaces Dug . | . . . . . . Terrain Destroyed 29 | . . . . . 29 Melee . | . . . . . . Projectile . | . . . . . . AOE 29 | . . . . . 29 Terrain Rammed 34 | . . . . . 34 Walls Destroyed . | . . . . . . Machines Disabled . | . . . . . . Actions | -11 -10 -10 -10 -9 -8 --------- Run | Yrd Mat Min Exi Min Mat Total 1403 | 55 610 50 438 170 80 Wait 8 | . 4 . . 4 . Move 1240 | 45 551 40 426 150 28 Hop . | . . . . . . Pick Up 17 | 4 7 . 4 2 . Fast Attach 7 | 6 1 . . . . Attach 11 | . 1 4 2 . 4 Detach . | . . . . . . Swap 5 | . 3 . 1 1 . Drop 8 | . 3 . 5 . . Fire 70 | . 39 3 . 13 15 Melee . | . . . . . . Ram 33 | . . . . . 33 Kick . | . . . . . . Crush 4 | . 1 3 . . . Escape Stasis . | . . . . . . Rewire . | . . . . . . Trap . | . . . . . . Miscellaneous . | . . . . . . Route ------- -11/Scrapyard -10/Materials (discovered 2 exits: [*Mat] / [*Min]) -10/Mines -10/Exiles -9/Mines -8/Materials History --------- Turn | Location | Event 12 | -11/Scrapyard | Discovered new exit (range 16) 82 | -11/Scrapyard | Entered Materials 317 | -10/Materials | Build established: Mutant 681 | -10/Materials | Discovered new exit (range 12) 1047 | -10/Materials | Discovered new exit (range 16) 1094 | -10/Materials | Entered Mines 1095 | -10/Mines | Assembled infested the area 1120 | -10/Mines | Core integrity fell below 50% 1148 | -10/Mines | Lost 4 parts (1p1n2w) 1168 | -10/Mines | Deemed a non-threat by the Exiles lab entrance 1168 | -10/Mines | Discovered new exit (range 5) 1175 | -10/Mines | Entered Exiles 1214 | -10/Exiles | Met 8R-AWN 1241 | -10/Exiles | Met EX-HEX 1289 | -10/Exiles | Met EX-BIN 1308 | -10/Exiles | Aligned with FarCom system 1310 | -10/Exiles | Given EX-Vault access code 1372 | -10/Exiles | Opened EX-Vault 1382 | -10/Exiles | Found Potential Leg 1384 | -10/Exiles | Found Potential Leg 1417 | -10/Exiles | Warned to stay clear of 0b10 Research branches 1450 | -10/Exiles | Met EX-DEC 1520 | -10/Exiles | Visited The Gauntlet 1671 | -10/Exiles | Discovered new exit (range 10) 1678 | -10/Exiles | Left Exiles lab with Potential Leg 1678 | -10/Exiles | Entered Mines 1685 | -9/Mines | Core integrity fell below 20% 1799 | -9/Mines | Learned Materials interactive machine intel 1835 | -9/Mines | Discovered new exit (range 10) 1860 | -9/Mines | Entered Materials 1860 | -8/Materials | Evolved 4 slots: Propulsion x1, Utility x3 1861 | -8/Materials | Loaded intel: 18 interactive machine locations 1894 | -8/Materials | Garrison activated, responded to threat 1928 | -8/Materials | Released all parts (8) 1937 | -8/Materials | System corruption reached 10% 1943 | -8/Materials | Core integrity fell below 50% 1952 | -8/Materials | Lost 3 parts (1p2w) 1955 | -8/Materials | Core integrity fell below 20% 1961 | -8/Materials | Core destroyed Last Messages --------------- 01955_ U-05 Engineer lays Concrete. 01956_ Slammed into Wall. 01956_ Destabilizing: Core damaged (-11). 01957_ The unstable cave ceiling collapses. 01957_ Slammed into Wall. 01957_ U-05 Engineer lays Concrete. 01958_ Slammed into Wall. 01958_ Destabilizing: System corrupted (+1). 01958_ U-05 Engineer lays Concrete. 01958_ K-01 Serf collects debris. 01958_ U-05 Engineer lays Concrete. 01959_ Slammed into Wall. 01959_ Destabilizing: System corrupted (+1). 01959_ Destabilizing: Core damaged (-11). 01959_ U-05 Engineer lays Concrete. 01960_ Slammed into Wall. 01960_ U-05 Engineer lays Concrete. 01961_ Slammed into Wall. 01961_ Destabilizing: Core damaged (-16). 01961_ Destabilizing: Core damaged (-22). Map ----- +----------------------------------------------------+ | | | | | | | | | ?????????????????????????????????????????????????? | | ?????????????????????????????????????????????????? | | ?????????????????????????????????????????????????? | | ?????????????????????????????????????????????????? | | ?????????????????????????????????????????????????? | | ?????????????????????????????????????????????????? | | ?????????????????????????????????????????????????? | | ?????????????????????????????????????????????????? | | ?????????????????????????????????????????????????? | | ?????????????????????????????????????????????????? | | ?????????????????????????????????????????????????? | | ?????????????????????????????????????????????????? | | ?""?#####????????????????????????????????????????? | | ?Y"?# #????????????????????????????????????????? | | ?""?# #????????????????????????????????????????? | | ????# #????????????????????????????????????????? | | ????# #???????????????????##???????????????????? | | ????# #???????????????#### ####????????????????? | | ????# #???????????????# # ####??????????????? | | ???## ##??????????????# ### " #??????????????? | | ???# ################] ####"G"#??????????????? | | ???# !@! % #" " ????????????? | | ???# =] [ ??????????? | | ???# = ????????? | | ???# ################ k [ u #?????????? | | ???#######Y?????????Y???### #?????????? | | ??????????????????????????# !??????????? | | ??????????????????????????? ??????????? | | ??????????????????????????? u " ??????????? | | ??????????????????????????? = "" ???????????? | | ??????????"T"???????????""?? % ????????????? | | ????????????????????????T"?? %[*?????????????? | | ????????????????????????""?? [[ ????????????? | | ????????????????????????????? "T"#??????????????? | | ????????????????????????????? #"""???????????????? | | ?????????????????????????????^???????????????????? | | ?????????????????????????????????????????????????? | | ?????????????????????????????????????????????????? | | ?????????????????????????????????????????????????? | | ?????????????????????????????????????????????????? | | ?????????????????????????????????????????????????? | | ?????????????????????????????????????????????????? | | ?????????????????????????????????????????????????? | | ?????????????????????????????????????????????????? | | ?????????????????"""""???????????????????????????? | | ?????????????????""T""???????????????????????????? | +----------------------------------------------------+ Best States ------------- Heat Dissipation 31 Energy Generation 10 Energy Capacity 250 Matter Stores 300 Matter Capacity 300 Sight Range 16 Robot Scan Range 14 Terrain Scan Density 10 Evasion (%) 57 Recoil Reduction 2 Offensive Hacking 20 Item Schematics ----------------- None Robot Schematics ------------------ None Fabricated ------------ Nothing Alien Tech Used ----------------- None Achievements -------------- None Challenges ------------ None Game ------ Seed CoolingGreatInterrupter Manual? 0 Play Time 00:15:17 Cumulative 23.1 hours Start 2024.08.07 @ 12:39:03 End 2024.08.07 @ 12:54:01 Sessions 1 Manual Loads 0 Difficulty Rogue Special Mode None Game No. 81 Rogue 81 Adventurer 0 Explorer 0 Win Type - Total 0 Types 0/0/0/0/0/0/0/0/0 Lore% 17 Gallery% 24 Achievement% 31 Wizard Run 0 Options --------- Layout 0 ASCII 0 Keyboard 0 Movement Arrows Keybinds 0 Fullscreen 1 Font 24/Terminus Map View 64x52 Zoom Use 0% Tactical HUD 1 Map Filters NONE Filters NONE Steam 1 RUN: fd4f430e-6a74-4458-8980-2cc8a9ba5f5c